[Event "Titled Tuesday Blitz April 05 Late 2022"]
[White "Melkumyan, Hrant"]
[Black "Tanenbaum, Zachary"]
[WhiteFideId "13302485"]
[BlackFideId "2060850"]
[WhiteElo "2604"]
[BlackElo "2168"]
[Result "1-0"]
[Round "05"]
[TimeControl "180+1"]
[Date "2022.04.05"]
[WhiteClock "0:01:19"]
[BlackClock "0:01:23"]

1. d4 {[%clk 0:02:44]}  d5 {[%clk 0:02:58]} 2. c4 {[%clk 0:02:43]}  dxc4 {[%clk 0:02:59]} 3. e3 {[%clk 0:02:41]}  e5 {[%clk 0:02:59]} 4. Bxc4 {[%clk 0:02:39]}  exd4 {[%clk 0:03:00]} 5. exd4 {[%clk 0:02:40]}  Bd6 {[%clk 0:03:00]} 6. Nf3 {[%clk 0:02:39]}  Nf6 {[%clk 0:03:01]} 7. Qe2+ {[%clk 0:02:40]}  Qe7 {[%clk 0:03:02]} 8. Qxe7+ {[%clk 0:02:40]}  Bxe7 {[%clk 0:03:02]} 9. O-O {[%clk 0:02:40]}  O-O {[%clk 0:03:03]} 10. Re1 {[%clk 0:02:40]}  Bd6 {[%clk 0:03:03]} 11. Nc3 {[%clk 0:02:40]}  Bf5 {[%clk 0:02:59]} 12. Nb5 {[%clk 0:02:33]}  Nc6 {[%clk 0:02:56]} 13. Nxd6 {[%clk 0:02:30]}  cxd6 {[%clk 0:02:57]} 14. Bf4 {[%clk 0:02:31]}  d5 {[%clk 0:02:52]} 15. Bb5 {[%clk 0:02:28]}  Nb4 {[%clk 0:02:34]} 16. Nh4 {[%clk 0:02:08]}  Bd3 {[%clk 0:02:28]} 17. Bd6 {[%clk 0:02:06]}  Bxb5 {[%clk 0:02:26]} 18. Bxb4 {[%clk 0:02:06]}  Rfe8 {[%clk 0:02:26]} 19. Nf5 {[%clk 0:02:02]}  a5 {[%clk 0:02:24]} 20. Rxe8+ {[%clk 0:01:52]}  Rxe8 {[%clk 0:02:21]} 21. Bxa5 {[%clk 0:01:50]}  Re2 {[%clk 0:02:21]} 22. b3 {[%clk 0:01:42]}  Ne4 {[%clk 0:02:19]} 23. Be1 {[%clk 0:01:40]}  Kf8 {[%clk 0:01:58]} 24. f3 {[%clk 0:01:37]}  Nd2 {[%clk 0:01:57]} 25. Ng3 {[%clk 0:01:30]}  Re3 {[%clk 0:01:29]} 26. Bxd2 {[%clk 0:01:23]}  Rd3 {[%clk 0:01:29]} 27. Bb4+ {[%clk 0:01:20]}  Kg8 {[%clk 0:01:28]} 28. Ne2 {[%clk 0:01:19]}  Re3 {[%clk 0:01:26]} 29. Nf4 {[%clk 0:01:19]}  Bc6 {[%clk 0:01:23]} 30. Kf2 {[%clk 0:01:19]} 1-0


[Site "https://www.chess.com"]

[Event "Titled Tuesday Blitz April 05 Late 2022"]
[White "Mickiewicz, Piotr"]
[Black "Sydoryka, Vladyslav"]
[WhiteFideId "1114891"]
[BlackFideId "14145928"]
[WhiteElo "2479"]
[BlackElo "2610"]
[Result "1-0"]
[Round "05"]
[TimeControl "180+1"]
[Date "2022.04.06"]
[WhiteClock "0:00:07"]
[BlackClock "0:00:02"]

1. Nf3 {[%clk 0:03:00]}  d5 {[%clk 0:02:32]} 2. g3 {[%clk 0:03:01]}  Bg4 {[%clk 0:02:30]} 3. Bg2 {[%clk 0:03:02]}  Nd7 {[%clk 0:02:30]} 4. c4 {[%clk 0:03:00]}  c6 {[%clk 0:02:30]} 5. Qc2 {[%clk 0:02:52]}  Bxf3 {[%clk 0:02:29]} 6. Bxf3 {[%clk 0:02:42]}  Ne5 {[%clk 0:02:29]} 7. Bg2 {[%clk 0:02:40]}  Nxc4 {[%clk 0:02:28]} 8. O-O {[%clk 0:02:37]}  Nf6 {[%clk 0:02:28]} 9. b3 {[%clk 0:02:34]}  Nb6 {[%clk 0:02:27]} 10. Bb2 {[%clk 0:02:35]}  e6 {[%clk 0:02:27]} 11. d3 {[%clk 0:02:25]}  Be7 {[%clk 0:02:27]} 12. e4 {[%clk 0:02:24]}  O-O {[%clk 0:02:26]} 13. e5 {[%clk 0:02:20]}  Nfd7 {[%clk 0:02:26]} 14. Nd2 {[%clk 0:02:15]}  c5 {[%clk 0:02:23]} 15. f4 {[%clk 0:02:11]}  Rb8 {[%clk 0:02:15]} 16. Kh1 {[%clk 0:02:09]}  f5 {[%clk 0:02:09]} 17. exf6 {[%clk 0:02:04]}  Bxf6 {[%clk 0:02:08]} 18. Rae1 {[%clk 0:02:04]}  Bxb2 {[%clk 0:02:04]} 19. Qxb2 {[%clk 0:02:04]}  Qf6 {[%clk 0:02:05]} 20. Qa3 {[%clk 0:01:47]}  a6 {[%clk 0:01:52]} 21. Nf3 {[%clk 0:01:46]}  Rbe8 {[%clk 0:01:46]} 22. Qa5 {[%clk 0:01:43]}  Nc8 {[%clk 0:01:41]} 23. Qc7 {[%clk 0:01:40]}  Re7 {[%clk 0:01:35]} 24. Qxb7 {[%clk 0:01:35]}  a5 {[%clk 0:01:34]} 25. Qc6 {[%clk 0:01:31]}  h6 {[%clk 0:01:22]} 26. Re3 {[%clk 0:01:20]}  Rfe8 {[%clk 0:00:44]} 27. Rfe1 {[%clk 0:01:19]}  g5 {[%clk 0:00:39]} 28. fxg5 {[%clk 0:01:09]}  hxg5 {[%clk 0:00:40]} 29. Ne5 {[%clk 0:00:49]}  Ncb6 {[%clk 0:00:30]} 30. Nxd7 {[%clk 0:00:37]}  Nxd7 {[%clk 0:00:31]} 31. Bxd5 {[%clk 0:00:36]}  Nf8 {[%clk 0:00:18]} 32. Qxc5 {[%clk 0:00:30]}  Kg7 {[%clk 0:00:07]} 33. Rf3 {[%clk 0:00:19]}  Qg6 {[%clk 0:00:04]} 34. Be4 {[%clk 0:00:19]}  Qh6 {[%clk 0:00:03]} 35. Qe5+ {[%clk 0:00:18]}  Kg8 {[%clk 0:00:03]} 36. Ref1 {[%clk 0:00:19]}  Nd7 {[%clk 0:00:03]} 37. Qd6 {[%clk 0:00:17]}  g4 {[%clk 0:00:03]} 38. Rf4 {[%clk 0:00:16]}  Qg5 {[%clk 0:00:03]} 39. Bc6 {[%clk 0:00:10]}  Rd8 {[%clk 0:00:02]} 40. Rxg4 {[%clk 0:00:07]}  Qxg4 {[%clk 0:00:02]} 41. Qxe7 {[%clk 0:00:07]} 1-0


[Site "https://www.chess.com"]

[Event "Titled Tuesday Blitz April 05 Late 2022"]
[White "Migot, Tangi"]
[Black "Hardaway, Brewington"]
[WhiteFideId "662445"]
[BlackFideId "30941849"]
[WhiteElo "2522"]
[BlackElo "2668"]
[Result "0-1"]
[Round "05"]
[TimeControl "180+1"]
[Date "2022.04.06"]
[WhiteClock "0:00:03"]
[BlackClock "0:00:26"]

1. e4 {[%clk 0:03:00]}  d6 {[%clk 0:02:57]} 2. d4 {[%clk 0:03:00]}  Nf6 {[%clk 0:02:55]} 3. Nc3 {[%clk 0:03:01]}  g6 {[%clk 0:02:53]} 4. Be3 {[%clk 0:03:00]}  Bg7 {[%clk 0:02:53]} 5. h3 {[%clk 0:03:00]}  Nbd7 {[%clk 0:02:52]} 6. Qd2 {[%clk 0:03:00]}  e5 {[%clk 0:02:52]} 7. d5 {[%clk 0:02:59]}  Nh5 {[%clk 0:02:52]} 8. Nge2 {[%clk 0:02:58]}  f5 {[%clk 0:02:48]} 9. exf5 {[%clk 0:02:46]}  gxf5 {[%clk 0:02:49]} 10. Bg5 {[%clk 0:02:33]}  Ndf6 {[%clk 0:02:47]} 11. O-O-O {[%clk 0:02:19]}  h6 {[%clk 0:02:46]} 12. Bh4 {[%clk 0:02:19]}  Qe7 {[%clk 0:02:24]} 13. f4 {[%clk 0:02:18]}  Ne4 {[%clk 0:02:23]} 14. Bxe7 {[%clk 0:01:54]}  Nxd2 {[%clk 0:02:22]} 15. Bh4 {[%clk 0:01:51]}  Nc4 {[%clk 0:02:13]} 16. fxe5 {[%clk 0:01:25]}  Bxe5 {[%clk 0:02:10]} 17. Bf2 {[%clk 0:01:23]}  Bd7 {[%clk 0:02:09]} 18. b3 {[%clk 0:01:23]}  Nb6 {[%clk 0:02:06]} 19. a4 {[%clk 0:01:22]}  Nc8 {[%clk 0:02:04]} 20. Nd4 {[%clk 0:01:19]}  Ng3 {[%clk 0:02:00]} 21. Bxg3 {[%clk 0:01:14]}  Bxg3 {[%clk 0:02:01]} 22. Bd3 {[%clk 0:01:13]}  Be5 {[%clk 0:01:58]} 23. Rhe1 {[%clk 0:01:04]}  Kd8 {[%clk 0:01:54]} 24. Nce2 {[%clk 0:01:00]}  Nb6 {[%clk 0:01:45]} 25. c4 {[%clk 0:00:54]}  f4 {[%clk 0:01:41]} 26. Nf3 {[%clk 0:00:50]}  Be8 {[%clk 0:01:29]} 27. Nxe5 {[%clk 0:00:46]}  dxe5 {[%clk 0:01:28]} 28. Nc3 {[%clk 0:00:44]}  Nd7 {[%clk 0:01:26]} 29. Bc2 {[%clk 0:00:26]}  Bh5 {[%clk 0:01:18]} 30. Rd2 {[%clk 0:00:26]}  Rg8 {[%clk 0:01:14]} 31. Bf5 {[%clk 0:00:22]}  Nc5 {[%clk 0:01:13]} 32. Kb2 {[%clk 0:00:20]}  Re8 {[%clk 0:01:12]} 33. b4 {[%clk 0:00:19]}  Nd7 {[%clk 0:01:08]} 34. c5 {[%clk 0:00:19]}  Nf6 {[%clk 0:01:05]} 35. Kb3 {[%clk 0:00:17]}  Ke7 {[%clk 0:01:00]} 36. d6+ {[%clk 0:00:16]}  cxd6 {[%clk 0:01:00]} 37. cxd6+ {[%clk 0:00:16]}  Kf7 {[%clk 0:00:59]} 38. d7 {[%clk 0:00:12]}  Red8 {[%clk 0:00:57]} 39. Rxe5 {[%clk 0:00:13]}  Kf8 {[%clk 0:00:56]} 40. Rc5 {[%clk 0:00:11]}  Bf7+ {[%clk 0:00:55]} 41. Kb2 {[%clk 0:00:12]}  Ke7 {[%clk 0:00:36]} 42. Rc7 {[%clk 0:00:12]}  a5 {[%clk 0:00:32]} 43. bxa5 {[%clk 0:00:10]}  Rxa5 {[%clk 0:00:31]} 44. Be4 {[%clk 0:00:03]}  b5 {[%clk 0:00:26]} 0-1


[Site "https://www.chess.com"]

[Event "Titled Tuesday Blitz April 05 Late 2022"]
[White "Mikhalsky, Vladimir"]
[Black "Diaz Perez, Michel Alejandro"]
[WhiteFideId "14144352"]
[BlackFideId "3517179"]
[WhiteElo "2513"]
[BlackElo "2647"]
[Result "1-0"]
[Round "05"]
[TimeControl "180+1"]
[Date "2022.04.06"]
[WhiteClock "0:00:07"]
[BlackClock "0:00:10"]

1. e4 {[%clk 0:02:56]}  c5 {[%clk 0:02:57]} 2. Nf3 {[%clk 0:02:56]}  d6 {[%clk 0:02:58]} 3. Bb5+ {[%clk 0:02:54]}  Bd7 {[%clk 0:02:57]} 4. Bxd7+ {[%clk 0:02:53]}  Qxd7 {[%clk 0:02:58]} 5. c4 {[%clk 0:02:53]}  Nc6 {[%clk 0:02:57]} 6. d4 {[%clk 0:02:51]}  cxd4 {[%clk 0:02:57]} 7. Nxd4 {[%clk 0:02:51]}  g6 {[%clk 0:02:58]} 8. Nc3 {[%clk 0:02:47]}  Bg7 {[%clk 0:02:58]} 9. Be3 {[%clk 0:02:46]}  Rc8 {[%clk 0:02:57]} 10. O-O {[%clk 0:02:42]}  Nf6 {[%clk 0:02:55]} 11. f3 {[%clk 0:02:34]}  O-O {[%clk 0:02:52]} 12. b3 {[%clk 0:02:33]}  a6 {[%clk 0:02:48]} 13. Rc1 {[%clk 0:02:26]}  Nxd4 {[%clk 0:02:44]} 14. Bxd4 {[%clk 0:02:23]}  b5 {[%clk 0:02:44]} 15. cxb5 {[%clk 0:02:09]}  axb5 {[%clk 0:02:45]} 16. Qd3 {[%clk 0:02:09]}  b4 {[%clk 0:02:43]} 17. Na4 {[%clk 0:02:07]}  Qb7 {[%clk 0:02:39]} 18. Kh1 {[%clk 0:01:55]}  Nd7 {[%clk 0:02:15]} 19. Bxg7 {[%clk 0:01:52]}  Kxg7 {[%clk 0:02:16]} 20. Qd4+ {[%clk 0:01:51]}  Kg8 {[%clk 0:02:16]} 21. h4 {[%clk 0:01:41]}  Qb5 {[%clk 0:02:06]} 22. Qe3 {[%clk 0:01:36]}  Kg7 {[%clk 0:02:02]} 23. Qg5 {[%clk 0:01:30]}  Qxg5 {[%clk 0:01:27]} 24. hxg5 {[%clk 0:01:29]}  f5 {[%clk 0:01:28]} 25. gxf6+ {[%clk 0:01:22]}  Kxf6 {[%clk 0:01:28]} 26. Kh2 {[%clk 0:01:21]}  Ke5 {[%clk 0:01:27]} 27. Nb2 {[%clk 0:01:18]}  Nc5 {[%clk 0:01:24]} 28. Rfd1 {[%clk 0:01:14]}  Ra8 {[%clk 0:01:21]} 29. Nc4+ {[%clk 0:01:08]}  Ke6 {[%clk 0:01:20]} 30. Rc2 {[%clk 0:01:07]}  Ra6 {[%clk 0:01:11]} 31. Ne3 {[%clk 0:01:06]}  Rfa8 {[%clk 0:01:06]} 32. Rdd2 {[%clk 0:01:04]}  R6a7 {[%clk 0:00:53]} 33. Nd5 {[%clk 0:01:03]}  Rb8 {[%clk 0:00:53]} 34. Rc4 {[%clk 0:00:56]}  Rab7 {[%clk 0:00:52]} 35. Rdd4 {[%clk 0:00:53]}  Ra8 {[%clk 0:00:49]} 36. Rxb4 {[%clk 0:00:51]}  Rxa2 {[%clk 0:00:47]} 37. Rxb7 {[%clk 0:00:47]}  Nxb7 {[%clk 0:00:48]} 38. Rb4 {[%clk 0:00:42]}  Nc5 {[%clk 0:00:47]} 39. Rb8 {[%clk 0:00:42]}  Rb2 {[%clk 0:00:43]} 40. b4 {[%clk 0:00:40]}  Kf7 {[%clk 0:00:41]} 41. Rh8 {[%clk 0:00:36]}  Nd3 {[%clk 0:00:36]} 42. Rxh7+ {[%clk 0:00:35]}  Kf8 {[%clk 0:00:36]} 43. Nxe7 {[%clk 0:00:25]}  Nf4 {[%clk 0:00:35]} 44. Kg3 {[%clk 0:00:23]}  g5 {[%clk 0:00:34]} 45. Kg4 {[%clk 0:00:20]}  Rxb4 {[%clk 0:00:23]} 46. g3 {[%clk 0:00:19]}  Ne6 {[%clk 0:00:21]} 47. Nd5 {[%clk 0:00:19]}  Ra4 {[%clk 0:00:19]} 48. Kf5 {[%clk 0:00:18]}  Nd4+ {[%clk 0:00:18]} 49. Kg4 {[%clk 0:00:18]}  Ra3 {[%clk 0:00:17]} 50. f4 {[%clk 0:00:18]}  gxf4 {[%clk 0:00:17]} 51. gxf4 {[%clk 0:00:18]}  Ne2 {[%clk 0:00:17]} 52. f5 {[%clk 0:00:18]}  Rg3+ {[%clk 0:00:16]} 53. Kh4 {[%clk 0:00:18]}  Rg1 {[%clk 0:00:16]} 54. Rd7 {[%clk 0:00:17]}  Ng3 {[%clk 0:00:13]} 55. Nf6 {[%clk 0:00:17]}  Nf1 {[%clk 0:00:07]} 56. Rxd6 {[%clk 0:00:16]}  Ne3 {[%clk 0:00:07]} 57. Re6 {[%clk 0:00:13]}  Kf7 {[%clk 0:00:07]} 58. Nd7 {[%clk 0:00:10]}  Ng2+ {[%clk 0:00:05]} 59. Kg3 {[%clk 0:00:08]}  Ne3+ {[%clk 0:00:06]} 60. Kf2 {[%clk 0:00:08]}  Rd1 {[%clk 0:00:05]} 61. Kxe3 {[%clk 0:00:08]}  Rxd7 {[%clk 0:00:05]} 62. Kf4 {[%clk 0:00:08]}  Rb7 {[%clk 0:00:05]} 63. Ra6 {[%clk 0:00:08]}  Rb4 {[%clk 0:00:06]} 64. Ke5 {[%clk 0:00:08]}  Rb5+ {[%clk 0:00:05]} 65. Kf4 {[%clk 0:00:09]}  Rb1 {[%clk 0:00:05]} 66. e5 {[%clk 0:00:08]}  Rf1+ {[%clk 0:00:05]} 67. Ke4 {[%clk 0:00:08]}  Re1+ {[%clk 0:00:06]} 68. Kd5 {[%clk 0:00:08]}  Rd1+ {[%clk 0:00:06]} 69. Kc6 {[%clk 0:00:08]}  Re1 {[%clk 0:00:06]} 70. Ra7+ {[%clk 0:00:08]}  Ke8 {[%clk 0:00:05]} 71. Kd6 {[%clk 0:00:08]}  Rf1 {[%clk 0:00:06]} 72. Ke6 {[%clk 0:00:08]}  Kd8 {[%clk 0:00:05]} 73. f6 {[%clk 0:00:08]}  Kc8 {[%clk 0:00:05]} 74. f7 {[%clk 0:00:08]}  Kb8 {[%clk 0:00:05]} 75. Rd7 {[%clk 0:00:07]}  Kc8 {[%clk 0:00:06]} 76. Ke7 {[%clk 0:00:07]}  Rxf7+ {[%clk 0:00:05]} 77. Kxf7 {[%clk 0:00:07]}  Kxd7 {[%clk 0:00:06]} 78. e6+ {[%clk 0:00:07]}  Kd8 {[%clk 0:00:07]} 79. e7+ {[%clk 0:00:07]}  Kd7 {[%clk 0:00:08]} 80. e8=Q+ {[%clk 0:00:07]}  Kd6 {[%clk 0:00:09]} 81. Qe6+ {[%clk 0:00:07]}  Kc5 {[%clk 0:00:09]} 82. Kf6 {[%clk 0:00:08]}  Kb4 {[%clk 0:00:10]} 83. Qc6 {[%clk 0:00:07]}  Ka3 {[%clk 0:00:10]} 84. Qb7 {[%clk 0:00:07]}  Ka4 {[%clk 0:00:10]} 85. Ke5 {[%clk 0:00:08]}  Ka5 {[%clk 0:00:11]} 86. Kd5 {[%clk 0:00:08]}  Ka4 {[%clk 0:00:11]} 87. Kc4 {[%clk 0:00:08]}  Ka5 {[%clk 0:00:10]} 88. Qb5# {[%clk 0:00:07]} 1-0


[Site "https://www.chess.com"]

[Event "Titled Tuesday Blitz April 05 Late 2022"]
[White "Mohammadian, Mohammad"]
[Black "Bowden, Karl"]
[WhiteFideId "12566055"]
[BlackFideId "400548"]
[WhiteElo "1544"]
[BlackElo "2348"]
[Result "0-1"]
[Round "05"]
[TimeControl "180+1"]
[Date "2022.04.06"]
[WhiteClock "0:00:12"]
[BlackClock "0:00:32"]

1. e4 {[%clk 0:03:00]}  e5 {[%clk 0:02:59]} 2. Nf3 {[%clk 0:03:00]}  d5 {[%clk 0:02:56]} 3. Nxe5 {[%clk 0:02:54]}  Bd6 {[%clk 0:02:56]} 4. d4 {[%clk 0:02:52]}  dxe4 {[%clk 0:02:55]} 5. Qh5 {[%clk 0:02:41]}  g6 {[%clk 0:02:39]} 6. Qd1 {[%clk 0:02:32]}  Bxe5 {[%clk 0:02:23]} 7. dxe5 {[%clk 0:02:30]}  Qxd1+ {[%clk 0:02:23]} 8. Kxd1 {[%clk 0:02:30]}  Nc6 {[%clk 0:02:23]} 9. Bf4 {[%clk 0:02:27]}  Bg4+ {[%clk 0:02:17]} 10. Be2 {[%clk 0:02:22]}  O-O-O+ {[%clk 0:02:11]} 11. Ke1 {[%clk 0:02:18]}  Bxe2 {[%clk 0:02:07]} 12. Kxe2 {[%clk 0:02:17]}  Nd4+ {[%clk 0:02:07]} 13. Kd2 {[%clk 0:01:53]}  Nb3+ {[%clk 0:02:02]} 14. Kc3 {[%clk 0:01:47]}  Nxa1 {[%clk 0:02:02]} 15. Na3 {[%clk 0:01:43]}  Nxc2 {[%clk 0:01:59]} 16. Nxc2 {[%clk 0:01:42]}  Ne7 {[%clk 0:01:30]} 17. Ne3 {[%clk 0:01:34]}  Rd3+ {[%clk 0:01:10]} 18. Kc2 {[%clk 0:01:23]}  Nc6 {[%clk 0:01:07]} 19. Rc1 {[%clk 0:01:15]}  Nd4+ {[%clk 0:01:01]} 20. Kb1 {[%clk 0:01:09]}  Ne2 {[%clk 0:01:01]} 21. Bg3 {[%clk 0:00:26]}  Nxc1 {[%clk 0:00:57]} 22. Kxc1 {[%clk 0:00:26]}  Kd7 {[%clk 0:00:56]} 23. Ng4 {[%clk 0:00:18]}  Ke6 {[%clk 0:00:46]} 24. Kc2 {[%clk 0:00:13]}  Rhd8 {[%clk 0:00:41]} 25. Bf4 {[%clk 0:00:12]}  Kf5 {[%clk 0:00:32]} 0-1


[Site "https://www.chess.com"]

[Event "Titled Tuesday Blitz April 05 Late 2022"]
[White "Morris-Suzuki, Sophie"]
[Black "Goryachkina, Aleksandra"]
[WhiteFideId "30922615"]
[BlackFideId "4147103"]
[WhiteElo "2513"]
[BlackElo "2647"]
[Result "1/2-1/2"]
[Round "05"]
[TimeControl "180+1"]
[Date "2022.04.06"]
[WhiteClock "0:00:38"]
[BlackClock "0:00:11"]

1. d4 {[%clk 0:03:00]}  Nf6 {[%clk 0:02:59]} 2. c4 {[%clk 0:02:59]}  e6 {[%clk 0:02:59]} 3. Nc3 {[%clk 0:02:55]}  d5 {[%clk 0:02:58]} 4. cxd5 {[%clk 0:02:55]}  exd5 {[%clk 0:02:59]} 5. Bg5 {[%clk 0:02:55]}  c6 {[%clk 0:02:59]} 6. Qc2 {[%clk 0:02:55]}  h6 {[%clk 0:02:56]} 7. Bxf6 {[%clk 0:02:50]}  Qxf6 {[%clk 0:02:56]} 8. Nxd5 {[%clk 0:02:46]}  Qxd4 {[%clk 0:02:49]} 9. Rd1 {[%clk 0:02:36]}  Bb4+ {[%clk 0:02:38]} 10. Nc3 {[%clk 0:02:31]}  Bxc3+ {[%clk 0:02:33]} 11. bxc3 {[%clk 0:02:31]}  Qc5 {[%clk 0:02:30]} 12. e3 {[%clk 0:02:26]}  O-O {[%clk 0:02:24]} 13. Bd3 {[%clk 0:02:26]}  Be6 {[%clk 0:02:16]} 14. Ne2 {[%clk 0:02:22]}  Nd7 {[%clk 0:02:15]} 15. Nd4 {[%clk 0:02:15]}  Ne5 {[%clk 0:02:10]} 16. Nxe6 {[%clk 0:02:13]}  fxe6 {[%clk 0:02:10]} 17. O-O {[%clk 0:02:08]}  Rf6 {[%clk 0:02:04]} 18. Qb3 {[%clk 0:02:00]}  b6 {[%clk 0:01:55]} 19. Be4 {[%clk 0:01:52]}  a5 {[%clk 0:01:39]} 20. Rd4 {[%clk 0:01:52]}  Raf8 {[%clk 0:01:35]} 21. h3 {[%clk 0:01:42]}  b5 {[%clk 0:01:34]} 22. Bb1 {[%clk 0:01:17]}  Nc4 {[%clk 0:00:56]} 23. Qc2 {[%clk 0:01:16]}  Qf5 {[%clk 0:00:55]} 24. Qe2 {[%clk 0:00:55]}  Qe5 {[%clk 0:00:48]} 25. Qd3 {[%clk 0:00:38]}  Qf5 {[%clk 0:00:11]} 26. Qe2 {[%clk 0:00:37]}  Qe5 {[%clk 0:00:11]} 27. Qd3 {[%clk 0:00:38]}  Qf5 {[%clk 0:00:11]} 28. Qe2 {[%clk 0:00:38]} 1/2-1/2


[Site "https://www.chess.com"]

[Event "Titled Tuesday Blitz April 05 Late 2022"]
[White "Nepomniachtchi, Ian"]
[Black "Li, Ben"]
[WhiteFideId "4168119"]
[BlackFideId "2089980"]
[WhiteElo "2740"]
[BlackElo "2267"]
[Result "1-0"]
[Round "05"]
[TimeControl "180+1"]
[Date "2022.04.05"]
[WhiteClock "0:01:17"]
[BlackClock "0:00:07"]

1. e4 {[%clk 0:03:00]}  e5 {[%clk 0:03:00]} 2. f4 {[%clk 0:03:01]}  d5 {[%clk 0:02:59]} 3. exd5 {[%clk 0:03:00]}  exf4 {[%clk 0:03:00]} 4. Nf3 {[%clk 0:03:00]}  Nf6 {[%clk 0:03:00]} 5. Bb5+ {[%clk 0:03:01]}  c6 {[%clk 0:03:00]} 6. dxc6 {[%clk 0:03:02]}  Nxc6 {[%clk 0:03:01]} 7. Nc3 {[%clk 0:03:02]}  Bd6 {[%clk 0:03:00]} 8. Qe2+ {[%clk 0:03:02]}  Be7 {[%clk 0:02:53]} 9. b3 {[%clk 0:02:58]}  O-O {[%clk 0:02:53]} 10. Bb2 {[%clk 0:02:58]}  Bg4 {[%clk 0:02:51]} 11. Bxc6 {[%clk 0:02:57]}  bxc6 {[%clk 0:02:52]} 12. O-O-O {[%clk 0:02:58]}  a5 {[%clk 0:02:49]} 13. h3 {[%clk 0:02:57]}  Bh5 {[%clk 0:02:49]} 14. Qc4 {[%clk 0:02:56]}  Qc7 {[%clk 0:02:39]} 15. Rde1 {[%clk 0:02:55]}  Rfe8 {[%clk 0:02:34]} 16. Nd4 {[%clk 0:02:53]}  c5 {[%clk 0:02:21]} 17. Nf5 {[%clk 0:02:53]}  Bf8 {[%clk 0:02:21]} 18. Nd5 {[%clk 0:02:51]}  Nxd5 {[%clk 0:02:16]} 19. Qxd5 {[%clk 0:02:52]}  Bg6 {[%clk 0:02:17]} 20. Nh4 {[%clk 0:02:45]}  a4 {[%clk 0:02:11]} 21. Nxg6 {[%clk 0:02:41]}  hxg6 {[%clk 0:02:11]} 22. Rxe8 {[%clk 0:02:29]}  Rxe8 {[%clk 0:02:12]} 23. h4 {[%clk 0:02:30]}  axb3 {[%clk 0:01:59]} 24. axb3 {[%clk 0:02:29]}  Rd8 {[%clk 0:01:50]} 25. Qe4 {[%clk 0:02:26]}  Qd6 {[%clk 0:01:44]} 26. Bc3 {[%clk 0:02:26]}  c4 {[%clk 0:01:33]} 27. Qxc4 {[%clk 0:02:24]}  Qa3+ {[%clk 0:01:33]} 28. Bb2 {[%clk 0:02:24]}  Qa5 {[%clk 0:01:33]} 29. Qxf4 {[%clk 0:02:19]}  Bb4 {[%clk 0:01:26]} 30. c3 {[%clk 0:02:03]}  Ba3 {[%clk 0:01:25]} 31. Kc2 {[%clk 0:02:00]}  Bxb2 {[%clk 0:01:17]} 32. Kxb2 {[%clk 0:02:01]}  Qd5 {[%clk 0:01:17]} 33. Rc1 {[%clk 0:01:57]}  Qxg2 {[%clk 0:01:13]} 34. Rc2 {[%clk 0:01:57]}  Re8 {[%clk 0:01:07]} 35. c4 {[%clk 0:01:47]}  Re1 {[%clk 0:01:03]} 36. c5 {[%clk 0:01:45]}  Qc6 {[%clk 0:00:53]} 37. Qd6 {[%clk 0:01:39]}  Qh1 {[%clk 0:00:51]} 38. c6 {[%clk 0:01:37]}  Rb1+ {[%clk 0:00:51]} 39. Kc3 {[%clk 0:01:37]}  Qf3+ {[%clk 0:00:50]} 40. d3 {[%clk 0:01:37]}  Qd1 {[%clk 0:00:34]} 41. c7 {[%clk 0:01:36]}  Qe1+ {[%clk 0:00:34]} 42. Kc4 {[%clk 0:01:36]}  Qxh4+ {[%clk 0:00:32]} 43. d4 {[%clk 0:01:35]}  Qh3 {[%clk 0:00:23]} 44. Qd8+ {[%clk 0:01:35]}  Kh7 {[%clk 0:00:23]} 45. Rc3 {[%clk 0:01:29]}  Qe6+ {[%clk 0:00:21]} 46. Kc5 {[%clk 0:01:24]}  Qf5+ {[%clk 0:00:20]} 47. Kb6 {[%clk 0:01:20]}  Qe6+ {[%clk 0:00:18]} 48. Kb7 {[%clk 0:01:20]}  Qe4+ {[%clk 0:00:10]} 49. Kb8 {[%clk 0:01:18]}  Qf4 {[%clk 0:00:07]} 50. Rh3+ {[%clk 0:01:17]} 1-0


[Site "https://www.chess.com"]